Cogmind - Beta 10 @@@ ROGUE MODE // 2020.09.20 @ 12:59:29 Player: Palikka Result: Destroyed by Y-45 Defender with Beam Rifle Performance ------------- Evolutions (2) 1000 Regions Visited (3) 600 Robots Destroyed (8) 40 Value Destroyed (75) 75 Prototype IDs (0) 0 Alien Tech Used (0) 0 Bonus (0) 0 TOTAL SCORE: 1715 Bonus ------- None Cogmind --------- Core Integrity 0/550 Matter 230/300 Energy 100/100 System Corruption 0% Temperature Cool (9) Movement Core (50) Location -8/Materials Parts ------- > --- POWER (1) -------- (None) > --- PROPULSION (4) --- (None) > --- UTILITY (4) ------ Utility Shielding Utility Shielding > --- WEAPON (2) ------- (None) > --- INVENTORY (4) ---- Light Ion Engine Light Ion Engine Small Storage Unit Grenade Launcher Peak State ------------ > --- POWER ------------ (None) > --- PROPULSION ------- (None) > --- UTILITY ---------- Utility Shielding Utility Shielding > --- WEAPON ----------- Mini Grenade Launcher > --- INVENTORY -------- Light Ion Engine Light Ion Engine Small Storage Unit Grenade Launcher [Rating: 4] Favorites ----------- Power None Propulsion Flight Unit Flight Unit Flight Unit Utility Utility Shielding Protection Utility Shielding Weapon Light Assault Rifle Ballistic Gun Light Assault Rifle Launcher Mini Grenade Launcher Build | -11 -10 -9 -8 ------- Run | Scr Mat Mat Mat Slots Evolved 4 | . . 2 2 Power . | . . . . Propulsion 2 | . . 1 1 Utility 2 | . . 1 1 Weapon . | . . . . Parts Attached 9 | 1 1 3 4 Power . | . . . . Engine . | . . . . Core . | . . . . Reactor . | . . . . Propulsion 1 | . . . 1 Treads . | . . . . Leg . | . . . . Wheel . | . . . . Hover . | . . . . Flight 1 | . . . 1 Utility 3 | . . 2 1 Device . | . . . . Storage . | . . . . Processor . | . . . . Hackware . | . . . . Protection 3 | . . 2 1 Artifact . | . . . . Weapon 5 | 1 1 1 2 Energy Gun . | . . . . Energy Cannon . | . . . . Ballistic Gun 1 | 1 . . . Ballistic Cannon . | . . . . Launcher 4 | . 1 1 2 Special Weapon . | . . . . Impact Weapon . | . . . . Slashing Weapon . | . . . . Piercing Weapon . | . . . . Special Melee Weapon . | . . . . Unidentified Prototypes . | . . . . Parts Lost 3 | . . 1 2 Power . | . . . . Propulsion 1 | . . . 1 Utility . | . . . . Weapon 2 | . . 1 1 Highest Loss Streak 2 | . . 1 2 Average Slot Usage (%) 22 | . 16 26 23 Protection 13 | . . 19 18 Ballistic Gun 5 | . 14 4 . Launcher 2 | . 2 2 3 Naked Turns . | . . . . Heaviest Build 3 | 1 1 3 3 Greatest Support 4 | 3 3 3 4 Greatest Overweight (x) . | . . . . Average Overweight (x) . | . . . . Largest Inventory Capacity 4 | 4 4 4 4 Average Capacity 4 | 4 4 4 4 Most Carried 4 | 4 4 4 4 Average Carried 3 | 2 3 4 3 Final Capacity 4 | 4 4 4 4 Final Carried 4 | 4 4 4 4 Class Distribution -------------------- 100% | Mutant Dominant Class ---------------- Mutant | -10/Materials Mutant | -9/Materials Mutant | -8/Materials Resources | -11 -10 -9 -8 ----------- Run | Scr Mat Mat Mat Matter Collected 254 | 210 . 44 . Remotely . | . . . . Salvage Created 56 | . 16 . 40 Parts 13 | . 5 . 8 Haulers Intercepted . | . . . . Recyclers Shooed . | . . . . Parts Field Recycled . | . . . . Retrieved Matter . | . . . . Parts Self-Destructed . | . . . . Prevented . | . . . . Kills | -11 -10 -9 -8 ------- Run | Scr Mat Mat Mat Combat Hostiles Destroyed 7 | . 3 . 4 AOE 7 | . 3 . 4 Classes Destroyed 2 | . 1 . 1 Builder 1 | . . . 1 Swarmer 7 | . 3 . 4 Best Kill Streak 5 | . 3 . 5 Combat Bots Only 4 | . 3 . 4 Max Kills in Single Turn 2 | . 1 . 2 Gunslinging . | . . . . Exploded 2 | . 1 . 2 Melee . | . . . . Uniques/NPCs Destroyed . | . . . . Combat | -11 -10 -9 -8 -------- Run | Scr Mat Mat Mat Damage Taken 867 | . 20 231 616 Core 716 | . . 156 560 Absorbed by Shields . | . . . . Core Remaining (%) 87 | 100 100 61 . Volleys Fired 6 | . 3 . 3 Largest 1 | . 1 . 1 Hottest 30 | . 30 . 30 Shots Fired 6 | . 3 . 3 Gun . | . . . . Cannon . | . . . . Launcher 6 | . 3 . 3 Special . | . . . . Kinetic . | . . . . Thermal . | . . . . Explosive 6 | . 3 . 3 Electromagnetic . | . . . . Robot Hit Streak 3 | . 3 . 2 Robot Miss Streak 1 | . . . 1 Penetration Max . | . . . . Secondary Targets . | . . . . Shots Hit Robots 5 | . 3 . 2 Core Hits 10 | . 3 1 6 Critical Hits . | . . . . Critical Kills . | . . . . Critical Parts Destroyed . | . . . . Melee Attacks . | . . . . Impact . | . . . . Slashing . | . . . . Piercing . | . . . . Sneak Attacks . | . . . . Combat Hostiles . | . . . . Follow-up Attacks . | . . . . Damage Inflicted 527 | . 230 6 291 Guns . | . . . . Cannons . | . . . . Explosions 521 | . 230 . 291 Melee . | . . . . Ramming 6 | . . 6 . Kinetic . | . . . . Thermal . | . . . . Explosive 521 | . 230 . 291 Electromagnetic . | . . . . Impact . | . . . . Slashing . | . . . . Piercing . | . . . . Highest Corruption . | . . . . Average Corruption . | . . . . Corruption Purged . | . . . . Overload Shots . | . . . . Overflow Damage 79 | . 18 . 61 Projectiles . | . . . . Explosions 79 | . 18 . 61 Melee . | . . . . Knockbacks . | . . . . Impact . | . . . . Kinetic . | . . . . Secondary . | . . . . Self-Inflicted Damage 42 | . . 2 40 Shots 1 | . . . 1 Rammed 3 | . . 3 . Targets Rammed 3 | . . 3 . Kicked . | . . . . Crushed . | . . . . Highest Temperature . | . . . . Average Temperature . | . . . . Received Heat Transfer 249 | . 6 54 189 Siege Activations . | . . . . Robots Corrupted . | . . . . Combat Hostiles . | . . . . Parts Fried . | . . . . Impact Corruptions . | . . . . Robots Melted . | . . . . Combat Hostiles . | . . . . Parts Melted . | . . . . Heat Transferred . | . . . . Parts Sabotaged . | . . . . Parts Stolen . | . . . . Parts Stripped . | . . . . Power Chain Reactions . | . . . . Missiles Intercepted . | . . . . Alert | -11 -10 -9 -8 ------- Run | Scr Mat Mat Mat Peak Influence 185 | . 109 74 185 Initial 45 | . . 45 31 Average 72 | . 57 56 113 Maximum Alert Level . | . . . . Low Security (%) 100 | 100 100 100 100 Level 1 . | . . . . Level 2 . | . . . . Level 3 . | . . . . Level 4 . | . . . . Level 5 . | . . . . High Security . | . . . . Max Security . | . . . . Squads Dispatched 4 | . 2 1 1 Investigation . | . . . . Extermination . | . . . . Reinforcement 4 | . 2 1 1 Assault . | . . . . Garrison . | . . . . Intercept . | . . . . Construction Impeded . | . . . . Haulers Reinforced . | . . . . Stealth | -11 -10 -9 -8 --------- Run | Scr Mat Mat Mat Distress Signals 1 | . . . 1 Communications Jammed . | . . . . Distress Signals . | . . . . Times Spotted 38 | . 8 6 24 Peak Tracking Total 17 | . 3 6 17 Tactical Retreats 3 | . . . 3 Traps | -11 -10 -9 -8 ------- Run | Scr Mat Mat Mat Traps Triggered 3 | . . 1 2 Indirectly . | . . . . Trap Hack Attempts . | . . . . Triggered . | . . . . Disarmed . | . . . . Reprogrammed . | . . . . Reused . | . . . . Traps Extracted . | . . . . Installed . | . . . . Triggered . | . . . . Machines | -11 -10 -9 -8 ---------- Run | Scr Mat Mat Mat Machines Disabled . | . . . . Max in Single Turn . | . . . . Machines Sabotaged . | . . . . Garrisons Compromised . | . . . . Overloaded Fab Kills . | . . . . Fab Network Shutdowns . | . . . . Hacking | -11 -10 -9 -8 --------- Run | Scr Mat Mat Mat Machines Accessed 5 | . 1 2 2 Terminals 5 | . 1 2 2 Fabricators . | . . . . Repair Stations . | . . . . Recycling Units . | . . . . Scanalyzers . | . . . . Garrison Access . | . . . . Total Hacks 10 | . 3 3 4 Successful 3 | . 2 1 . Failed 7 | . 1 2 4 Catastrophic 2 | . . . 2 Database Lockouts . | . . . . Manual 8 | . 1 3 4 Terminals 10 | . 3 3 4 Fabricators . | . . . . Repair Stations . | . . . . Recycling Units . | . . . . Scanalyzers . | . . . . Garrison Access . | . . . . Terminal Hacks 3 | . 2 1 . Level Access Points 2 | . 1 1 . Branch Access Points 1 | . 1 . . Fabricator Hacks . | . . . . Repair Station Hacks . | . . . . Recycling Unit Hacks . | . . . . Scanalyzer . | . . . . Garrison Access Hacks . | . . . . Unauthorized Hacks . | . . . . Terminals . | . . . . Fabricators . | . . . . Repair Stations . | . . . . Recycling Units . | . . . . Scanalyzers . | . . . . Garrison Access . | . . . . Data Cores Recovered . | . . . . Used . | . . . . Hacking Detections 4 | . . 2 2 Full Trace Events . | . . . . Feedback Events . | . . . . Feedback Blocked . | . . . . Robot Schematics Acquired . | . . . . Robots Built . | . . . . Matter . | . . . . Time . | . . . . Total Robot Build Rating . | . . . . Part Schematics Acquired . | . . . . Parts Built . | . . . . Matter . | . . . . Time . | . . . . Total Part Build Rating . | . . . . Parts Repaired . | . . . . Time . | . . . . Parts Recycled . | . . . . Recycled Matter . | . . . . Retrieved Matter . | . . . . Retrieved Components . | . . . . Parts Scanalyzed . | . . . . Part Schematics Acquired . | . . . . Parts Damaged . | . . . . Bothacking | -11 -10 -9 -8 ------------ Run | Scr Mat Mat Mat Used RIF Installer . | . . . . Robots Hacked . | . . . . Non-combat . | . . . . Combat . | . . . . Robot Hacks Applied . | . . . . Relay Couplers Released . | . . . . Robots Rewired . | . . . . Allies Hacked . | . . . . Hacks Repelled . | . . . . Allies | -11 -10 -9 -8 -------- Run | Scr Mat Mat Mat Total Allies . | . . . . Largest Group . | . . . . Highest-Rated Group . | . . . . Highest-Rated Ally . | . . . . Total Orders . | . . . . Ally Attacks . | . . . . Total Damage . | . . . . Kills . | . . . . Allies Corrupted . | . . . . Allies Melted . | . . . . Intel | -11 -10 -9 -8 ------- Run | Scr Mat Mat Mat Robot Analysis Total . | . . . . Derelict Logs Recovered . | . . . . Drone Launches . | . . . . Drone Recoveries . | . . . . Exploration | -11 -10 -9 -8 ------------- Run | Scr Mat Mat Mat Turns Passed 279 | 22 68 93 96 Spaces Moved 493 | 32 118 169 174 Core 447 | 32 118 169 128 Treads . | . . . . Legs . | . . . . Wheels . | . . . . Hover . | . . . . Flight 46 | . . . 46 Fastest Speed 40 | 50 50 50 40 Average Speed 49 | 50 50 50 47 Slowest Speed 50 | 50 50 50 50 Overloaded Moves . | . . . . Propulsion Burnouts . | . . . . Robots Hopped . | . . . . Cave-ins Triggered . | . . . . Exploration Rate (%) 23 | 3 37 21 31 Regions Visited 3 Branch Regions . Pre-discovered Areas . | . . . . Known Exits Taken 2 | . 1 1 . Unknown Exits Taken 1 | 1 . . . Scrap Searched . | . . . . Spaces Dug . | . . . . Terrain Destroyed 24 | . 4 . 20 Melee . | . . . . Projectile . | . . . . AOE 24 | . 4 . 20 Terrain Rammed . | . . . . Walls Destroyed . | . . . . Machines Disabled . | . . . . Actions | -11 -10 -9 -8 --------- Run | Scr Mat Mat Mat Total 518 | 36 124 175 183 Wait 2 | . . 1 1 Move 490 | 31 117 168 174 Hop . | . . . . Pick Up 5 | 4 1 . . Fast Attach 7 | 1 . 3 3 Attach 2 | . 1 . 1 Detach 2 | . 1 . 1 Swap . | . . . . Drop 1 | . 1 . . Fire 6 | . 3 . 3 Melee . | . . . . Ram 3 | . . 3 . Kick . | . . . . Crush . | . . . . Escape Stasis . | . . . . Rewire . | . . . . Trap . | . . . . Miscellaneous . | . . . . Route ------- -11/Scrapyard -10/Materials (discovered 4 exits: *Mat x3 / *Min) -9/Materials (discovered 4 exits: *Mat x3 / [*Min]) -8/Materials History --------- Turn | Location | Event 10 | -11/Scrapyard | Discovered new exit (range 16) 23 | -11/Scrapyard | Entered Materials 33 | -10/Materials | Identified exit to Mines 33 | -10/Materials | Identified exit to Materials 91 | -10/Materials | Entered another Materials area 91 | -9/Materials | Evolved 2 slots: Propulsion x1, Utility x1 110 | -9/Materials | Identified exit to Materials 129 | -9/Materials | Discovered new exit (range 3) 184 | -9/Materials | Entered another Materials area 184 | -8/Materials | Evolved 2 slots: Propulsion x1, Utility x1 262 | -8/Materials | Core integrity fell below 50% 274 | -8/Materials | Core integrity fell below 20% 280 | -8/Materials | Destroyed by Y-45 Defender with Beam Rifle Last Messages --------------- 00229_ S-10 Pest destroyed. 00229_ Destroyed Flight Unit. 00229_ Destroyed Lgt. Ion Engine. 00229_ S-10 Pest destroyed. 00229_ K-01 Serf collects debris. 00230_ T-07 Excavator is excavating. 00230_ U-05 Engineer lays Concrete. 00233_ U-05 Engineer builds a Wall. 00236_ K-01 Serf collects debris. 00242_ C-30 ARC bursts open, deploying its payload. 00242_ H-55 Commando unfolds itself. 00242_ Penetrated by Slug. 00242_ W-25 Informer sends out distress signal. 00243_ K-01 Serf collects debris. 00246_ Connecting with Terminal... 00247_ K-01 Serf collects debris. 00248_ Flight Unit destroyed. 00250_ Penetrated by Slug. 00257_ ALERT: Hostiles spotted, dispatching reinforcements to Terminal M002. Map ----- +----------------------------------------------------+ | ??????????????????????????# #?????# #??""T""" % | | ??????????????????????????# #?????# ######## [ | | #????????????##+########?# ####### * %[ | | #????????????# #?# [* | | #????????????# #?# | | #????????????# #?# ####+###### | | ?????????????# #?# ## ##### | | ?????#####????# ### ## #?????# | | ######"T"###### ## = [ #??????? | | ## ! #???????? | | ## #???????? | | ^ + #???????? | | ############### ############### #???????? | | ??????????????# #?????????????# #???????? | | ??????????????# #?????????????# #???????? | | ??????????????# #?????????????##########???????? | | ##????????????# %#??????????????????????????????? | | !#????????????# #??????????????????????????????? | | #????????????# #??????????????????????????????? | | #????????????# #??????????????????????????????? | | #????????????+ #??????????????????????????????? | | #????????????# #??????????????????????????????? | | ??????????????# #??????????????????????????????? | | ############### #######+#############+?????????? | | g Y g ????????? | | a @ g ????????? | | ????????? | | ################+###### ###+#####???????????? | | ??????????# #! !#???????????????????? | | ??????????# """"""" #! !#???????????????????? | | ??????????# """"""" ##!!!!##???????????????????? | | ??????????# """"""" #######????????????????????? | | ??????????# """"""" #??????????????????????????? | | ??????????# """"""" #??????????????????????????? | | ??????????# ???? ???????????????????????????????? | | ??????????##?????????????????????????????????????? | | | | | | | | | | | | | | | | | | | | | | | | | | | | | +----------------------------------------------------+ Best States ------------- Heat Dissipation 31 Energy Generation 5 Energy Capacity 100 Matter Stores 300 Matter Capacity 300 Sight Range 16 Terrain Scan Density 10 Utility Shielding 33 Evasion (%) 62 Item Schematics ----------------- None Robot Schematics ------------------ None Fabricated ------------ Nothing Alien Tech Used ----------------- None Achievements -------------- None Challenges ------------ None Game ------ Seed ModifiedLinearCasing Manual? 0 Play Time 00:06:13 Cumulative 270.7 hours Start 2020.09.20 @ 12:54:55 End 2020.09.20 @ 12:59:29 Sessions 1 Manual Loads 0 Difficulty Rogue Special Mode None Game No. 386 Rogue 386 Adventurer 0 Explorer 0 Win Type - Total 30 Types 21/0/6/3/0/0/0/0/0 Lore% 85 Gallery% 80 Achievement% 48 Wizard Run 0 Options --------- ASCII 0 Keyboard 1 Movement Numpad Keybinds 0 Fullscreen 1 Font 24/Smallcaps Map View 76x50 Tactical HUD 1 Map Filters NONE Filters NONE Steam 1 RUN: 06470422-3c0f-41ce-9eac-b0c966efcb34